bitfinex/quotes_BTCUSD_20250825
["timestamp","ask_amount","ask_price","bid_price","bid_amount"]
[1756151021091,7.7871375,111450.0,111440.0,1e-08]
[1756151021557,7.59587624,111450.0,111440.0,1e-08]
[1756151021834,7.74587624,111450.0,111440.0,1e-08]
[1756151022062,7.31831624,111450.0,111440.0,1e-08]
[1756151022275,7.49187624,111450.0,111440.0,1e-08]
[1756151022491,7.51232526,111450.0,111440.0,1e-08]
[1756151022709,7.26175467,111450.0,111440.0,1e-08]
[1756151022942,7.25863881,111450.0,111440.0,1e-08]
[1756151023226,7.40453292,111450.0,111440.0,1e-08]
[1756151023453,7.37204783,111450.0,111440.0,1e-08]
[1756151023675,7.37919528,111450.0,111440.0,1e-08]
[1756151023945,7.55364037,111450.0,111440.0,1e-08]
[1756151024173,7.57817261,111450.0,111440.0,1e-08]
[1756151024861,8.39275935,111450.0,111440.0,1e-08]
[1756151025077,8.56975935,111450.0,111440.0,1e-08]
[1756151025287,7.63501297,111450.0,111440.0,1e-08]
[1756151025496,8.56875798,111450.0,111440.0,1e-08]
[1756151025720,7.65006402,111450.0,111440.0,1e-08]
[1756151026158,7.65002402,111450.0,111440.0,1e-08]
[1756151026380,7.59649155,111450.0,111440.0,1e-08]
[1756151026594,6.63149602,111450.0,111440.0,1e-08]
[1756151026807,7.6609024,111450.0,111440.0,1e-08]
[1756151027050,7.6589024,111450.0,111440.0,1e-08]
[1756151027262,7.6629024,111450.0,111440.0,1e-08]
[1756151027469,7.6609024,111450.0,111440.0,1e-08]
[1756151027670,7.6569024,111450.0,111440.0,1e-08]
[1756151027890,7.6619024,111450.0,111440.0,1e-08]
[1756151028109,7.6617424,111450.0,111440.0,1e-08]
[1756151028328,7.6587424,111450.0,111440.0,1e-08]
[1756151028547,7.54354736,111450.0,111440.0,1e-08]
[1756151028766,7.56607541,111450.0,111440.0,1e-08]
[1756151029458,7.12437541,111450.0,111440.0,1e-08]
[1756151029697,7.10077934,111450.0,111440.0,1e-08]
[1756151030260,7.12437541,111450.0,111440.0,1e-08]
[1756151030494,7.1528205,111450.0,111440.0,1e-08]
[1756151030742,7.2474805,111450.0,111440.0,1e-08]
[1756151030949,8.18222688,111450.0,111440.0,1e-08]
[1756151031242,8.83004724,111450.0,111440.0,1e-08]
[1756151031464,8.80588549,111450.0,111440.0,1e-08]
[1756151031697,8.71178063,111450.0,111440.0,1e-08]
[1756151031917,1.47172861,111400.0,111390.0,0.00309]
[1756151032139,0.19701447,111380.0,111370.0,0.07419163]
[1756151032365,1.32434058,111380.0,111370.0,0.07627163]
[1756151032593,1.66434058,111380.0,111370.0,0.07675158]
[1756151032814,1.70165164,111380.0,111370.0,1e-08]
[1756151033043,7.76580432,111380.0,111370.0,1e-08]
[1756151033265,6.9103835,111380.0,111370.0,1e-08]
[1756151033506,7.04153129,111380.0,111370.0,1e-08]
[1756151033717,6.14639432,111380.0,111370.0,1e-08]
[1756151033939,0.53704672,111360.0,111350.0,0.07678991]
[1756151034170,5.79870645,111360.0,111350.0,0.07577991]
[1756151034390,5.86067832,111360.0,111350.0,0.07577991]
[1756151034578,5.86067832,111360.0,111350.0,0.07886991]
[1756151035079,6.7954247,111360.0,111350.0,0.07886991]
[1756151035363,6.7954247,111360.0,111350.0,0.07577991]
[1756151035575,6.80948432,111360.0,111350.0,0.07977991]
[1756151035782,6.80948432,111360.0,111350.0,0.08292991]
[1756151035996,5.87473794,111360.0,111350.0,0.08292991]
[1756151036424,6.80948432,111360.0,111350.0,0.08292991]
[1756151036646,6.80948432,111360.0,111350.0,0.08492991]
[1756151037084,6.80948432,111360.0,111350.0,0.08092991]
[1756151037573,6.80948432,111360.0,111350.0,0.08292991]
[1756151038041,6.80948432,111360.0,111350.0,0.08092991]
[1756151038483,6.80944346,111360.0,111350.0,0.08092991]
[1756151038953,6.80943766,111360.0,111350.0,0.08492991]
[1756151039199,6.83645566,111360.0,111350.0,0.08492991]
[1756151040758,5.72550928,111360.0,111350.0,0.08492991]
[1756151040986,6.83649566,111360.0,111350.0,0.08492991]
[1756151041251,6.66025566,111360.0,111350.0,0.08492991]
[1756151041484,6.83649566,111360.0,111350.0,0.08492991]
[1756151041935,6.66025566,111360.0,111350.0,0.08492991]
[1756151042399,5.65642928,111360.0,111350.0,0.08492991]
[1756151042658,0.23700839,111360.0,111350.0,0.08492991]
[1756151042893,0.3828557,111360.0,111350.0,0.26454374]
[1756151043133,0.24867593,111370.0,111350.0,0.26454374]
[1756151043134,0.17959593,111370.0,111350.0,0.26454374]
[1756151043369,0.1795977,111360.0,111350.0,0.26139374]
[1756151043880,0.38284693,111370.0,111350.0,0.3016415]
[1756151043881,0.543251,111370.0,111350.0,0.3016415]
[1756151044124,0.341,111360.0,111350.0,0.26039374]
[1756151044359,0.5215977,111360.0,111350.0,0.26539374]
[1756151044815,0.341,111360.0,111350.0,0.26354374]
[1756151045038,0.5205977,111360.0,111350.0,0.26354374]
[1756151045278,0.5205977,111360.0,111350.0,0.26754374]
[1756151045515,0.341,111360.0,111350.0,0.26754374]
[1756151045984,0.001,111360.0,111350.0,0.26754374]
[1756151046210,0.001,111360.0,111350.0,1.28917487]
[1756151046466,0.1805977,111360.0,111350.0,0.08792991]
[1756151046704,0.1805977,111360.0,111350.0,0.26354374]
[1756151046937,0.1805977,111360.0,111350.0,0.08392991]
[1756151048094,6.75126988,111350.0,111340.0,0.00677445]
[1756151048578,6.75335988,111350.0,111340.0,0.00145445]
[1756151049506,5.6402835,111350.0,111340.0,0.00677445]
[1756151049745,6.48816023,111350.0,111340.0,0.00677445]
[1756151049970,6.66640023,111350.0,111340.0,0.00677445]
[1756151050201,0.20780453,111340.0,111330.0,0.001]
[1756151050473,6.15890191,111340.0,111330.0,0.001]
[1756151050713,1.15890191,111340.0,111330.0,0.00317]
[1756151050944,0.220767,111340.0,111330.0,0.00317]
[1756151051188,1.33171338,111340.0,111330.0,0.00317]
[1756151051423,1.44171167,111340.0,111330.0,0.001]
[1756151051680,1.44371167,111340.0,111330.0,0.001]
[1756151051909,1.44060167,111340.0,111330.0,0.001]
[1756151052595,1.44060167,111340.0,111330.0,0.00317]
[1756151052596,1.26231167,111340.0,111330.0,0.00317]
[1756151052828,1.43651167,111340.0,111330.0,0.00317]
[1756151053056,1.46353067,111340.0,111330.0,0.00617]
[1756151053283,1.46353305,111340.0,111330.0,0.00417]
[1756151053747,1.46353305,111340.0,111330.0,0.00317]
[1756151053978,1.46453305,111340.0,111330.0,0.00317]
[1756151054458,0.26571702,111340.0,111330.0,0.00317]
[1756151054690,0.26571702,111340.0,111330.0,0.00632]
[1756151054691,1.3766634,111340.0,111330.0,0.00632]
[1756151054920,1.3766634,111340.0,111330.0,0.00317]
[1756151056067,1.36260291,111340.0,111330.0,0.00317]
[1756151056278,1.36260291,111340.0,111330.0,0.00517]
[1756151056668,1.36261098,111340.0,111330.0,0.00517]
[1756151057221,1.36470098,111340.0,111330.0,0.003]
[1756151057435,1.45468675,111340.0,111330.0,0.003]
[1756151057634,1.45157675,111340.0,111330.0,0.003]
[1756151057851,0.25167072,111340.0,111330.0,0.00517]
[1756151058072,0.19083513,111340.0,111330.0,0.01056557]
[1756151058285,0.19083513,111340.0,111330.0,0.00832]
[1756151058590,0.19083513,111340.0,111330.0,0.18796609]
[1756151058977,0.18736517,111340.0,111330.0,0.18796609]
[1756151059179,0.01120517,111340.0,111330.0,0.27483574]
[1756151059395,0.02759381,111340.0,111330.0,0.18596609]
[1756151060141,0.02759381,111340.0,111330.0,0.18696609]
[1756151060295,0.20722377,111340.0,111330.0,0.18796609]
[1756151060513,0.20722377,111340.0,111330.0,0.18696609]
[1756151060910,0.20722377,111340.0,111330.0,0.19096609]
[1756151061135,0.20722377,111340.0,111330.0,0.18996609]
[1756151061905,0.02759381,111340.0,111330.0,0.18996609]
[1756151062573,0.02759381,111340.0,111330.0,0.19296609]
[1756151063041,0.02761897,111340.0,111330.0,0.19296609]
[1756151064605,0.02761897,111340.0,111330.0,1.21459722]
[1756151064828,0.01120517,111340.0,111330.0,0.27985084]
[1756151065086,0.01120517,111340.0,111330.0,0.36672049]
[1756151065768,0.01120517,111340.0,111330.0,0.54284049]
[1756151067283,0.01120517,111340.0,111330.0,0.36672049]
[1756151067490,0.01120517,111340.0,111330.0,0.54284049]
[1756151068591,0.01120517,111340.0,111330.0,0.36672049]
[1756151068799,0.01120517,111340.0,111330.0,0.54280049]
[1756151071425,0.01120517,111340.0,111330.0,0.81150049]
[1756151072805,0.01120517,111340.0,111330.0,1.74624687]
[1756151073228,0.01120517,111340.0,111330.0,1.75525963]
[1756151073662,0.01120517,111340.0,111330.0,1.74624687]
[1756151073888,0.01120517,111340.0,111330.0,0.81150049]
[1756151074695,0.01120517,111340.0,111330.0,1.74594687]
[1756151074910,0.01120517,111340.0,111330.0,1.81502687]
[1756151075142,0.01120517,111340.0,111330.0,0.88028049]
[1756151075964,0.01120517,111340.0,111330.0,1.54332687]
[1756151076141,0.01120517,111340.0,111330.0,1.55731799]
[1756151076342,0.01120517,111340.0,111330.0,1.37723799]
[1756151076566,0.01120517,111340.0,111330.0,1.55319799]
[1756151076770,0.01220517,111340.0,111330.0,1.66019799]
[1756151077584,0.01220517,111340.0,111330.0,1.72446704]
[1756151077763,0.01210517,111340.0,111330.0,1.72446704]
[1756151077970,0.62058522,111390.0,111380.0,0.17956545]
[1756151078174,0.62058522,111390.0,111380.0,0.17606374]
[1756151078175,1.5303876,111390.0,111380.0,0.17606374]
[1756151078383,1.5303876,111390.0,111380.0,0.00014374]
[1756151078777,1.5303876,111390.0,111380.0,0.17970919]
[1756151078985,1.54444188,111390.0,111380.0,0.17970919]
[1756151079292,1.54644188,111390.0,111380.0,0.17970919]
[1756151079904,1.55536394,111390.0,111380.0,0.17970919]
[1756151080106,1.30471272,111390.0,111380.0,0.17970919]
[1756151080310,1.48426231,111390.0,111380.0,0.17970919]
[1756151080525,1.48426231,111390.0,111380.0,0.35554919]
[1756151081040,0.55151593,111390.0,111380.0,0.35554919]
[1756151081235,1.48626231,111390.0,111380.0,0.35554919]
[1756151081483,1.59058098,111390.0,111380.0,0.00014374]
[1756151081622,1.50371133,111390.0,111380.0,0.00014374]
[1756151082462,1.48965705,111390.0,111380.0,0.00014374]
[1756151083055,6.48965705,111390.0,111380.0,0.00014374]
[1756151083756,6.66545705,111390.0,111380.0,0.00014374]
[1756151083963,6.48965705,111390.0,111380.0,0.00014374]
[1756151084185,6.66545705,111390.0,111380.0,0.00014374]
[1756151084601,6.71307136,111390.0,111380.0,0.00014374]
[1756151085223,6.53727136,111390.0,111380.0,0.00014374]
[1756151085432,6.66541705,111390.0,111380.0,0.00014374]
[1756151085640,6.6794724,111390.0,111380.0,0.00014374]
[1756151086072,6.6794724,111390.0,111380.0,0.00018374]
[1756151087115,5.56896602,111390.0,111380.0,0.00018374]
[1756151087339,1.6794724,111390.0,111380.0,0.00018374]
[1756151087592,1.5037124,111390.0,111380.0,0.00018374]
[1756151087854,1.6794324,111390.0,111380.0,0.00018374]
[1756151088314,1.5037124,111390.0,111380.0,0.00018374]
[1756151088592,1.6793924,111390.0,111380.0,0.00018374]
[1756151090702,1.5037124,111390.0,111380.0,0.00018374]
[1756151090905,1.66190338,111390.0,111380.0,0.17974919]
[1756151091115,1.6793524,111390.0,111380.0,0.17974919]
[1756151091505,1.6793524,111390.0,111380.0,0.00018374]
[1756151092202,1.76222205,111390.0,111380.0,0.00018374]
[1756151092416,1.76722205,111390.0,111380.0,0.00018374]
[1756151092746,1.76422205,111390.0,111380.0,0.00018374]
[1756151092989,0.00032936,111380.0,111370.0,0.17958096]
[1756151093199,0.00032936,111380.0,111370.0,0.18285891]
[1756151093408,0.00032936,111380.0,111370.0,0.18501891]
[1756151093827,0.00032936,111380.0,111370.0,0.27190366]
[1756151094033,0.00032936,111380.0,111370.0,0.35877331]
[1756151095534,0.00132936,111380.0,111370.0,0.35877331]
[1756151096460,0.00132936,111380.0,111370.0,0.63647646]
[1756151096687,0.00132936,111380.0,111370.0,0.62747331]
[1756151096898,0.00132936,111380.0,111370.0,0.80299331]
[1756151097972,0.00132936,111380.0,111370.0,0.80399331]
[1756151098372,0.00132936,111380.0,111370.0,0.80299331]
[1756151098740,0.00132936,111380.0,111370.0,0.80499331]
[1756151098958,0.00032936,111380.0,111370.0,0.80499331]
[1756151099172,0.00032936,111380.0,111370.0,0.81595102]
[1756151099914,0.00032936,111380.0,111370.0,0.80691331]
[1756151100137,0.00032936,111380.0,111370.0,0.63147331]
[1756151100594,0.00032936,111380.0,111370.0,0.80661331]
[1756151101312,0.00032936,111380.0,111370.0,0.62824331]
[1756151101521,1.11981119,111380.0,111370.0,0.62772891]
[1756151101732,1.11981119,111380.0,111370.0,0.18362952]
[1756151101933,0.00236936,111380.0,111370.0,0.18577952]
[1756151102140,0.00032936,111380.0,111370.0,0.18577952]
[1756151102347,0.00032936,111380.0,111370.0,0.18177952]
[1756151102570,0.00032936,111380.0,111370.0,0.32353282]
[1756151102783,0.00032936,111380.0,111370.0,1.3312892]
[1756151102975,1e-08,111380.0,111370.0,1.4812892]
[1756151103223,1e-08,111380.0,111370.0,1.64455825]
[1756151103394,1e-08,111380.0,111370.0,2.02498563]
[1756151103694,0.07423163,111440.0,111430.0,0.17948487]
[1756151103868,0.26286569,111460.0,111450.0,0.17945266]
[1756151104068,0.25570819,111460.0,111440.0,0.1794589]
[1756151104277,1.11732996,111450.0,111440.0,0.35478877]
[1756151104487,0.18462358,111450.0,111440.0,0.17946877]
[1756151104695,0.00517,111450.0,111440.0,0.35478877]
[1756151104951,0.030118,111470.0,111460.0,0.17943656]
[1756151105165,0.00204,111470.0,111460.0,0.35475656]
[1756151105374,0.00517,111470.0,111460.0,0.35475656]
[1756151105608,1.11981716,111470.0,111460.0,0.17528]
[1756151105816,1.13386028,111470.0,111460.0,0.35171656]
[1756151106030,0.95443981,111470.0,111460.0,0.40483348]
[1756151106253,1.11981716,111470.0,111460.0,0.17943656]
[1756151106457,0.34,111460.0,111450.0,0.17945266]
[1756151106667,1.11935294,111460.0,111450.0,0.17945266]
[1756151106895,1.13680196,111460.0,111450.0,0.17528]
[1756151107098,0.17945266,111450.0,111440.0,0.17528]
[1756151107302,0.18149266,111450.0,111440.0,0.17528]
[1756151107543,1.11936904,111450.0,111440.0,0.17528]
[1756151107989,1.11936904,111450.0,111430.0,0.18845911]
[1756151108210,0.00204,111450.0,111440.0,0.17946877]
[1756151108432,0.00204,111450.0,111440.0,0.18161877]
[1756151109314,1.27787638,111460.0,111450.0,0.17945266]
[1756151109523,1.45935294,111460.0,111450.0,0.35465266]
[1756151109731,0.34204,111460.0,111450.0,0.4102148]
[1756151109945,1.45935294,111460.0,111450.0,0.35465266]
[1756151110384,1.27991638,111460.0,111450.0,0.35465266]
[1756151110591,1.45935294,111460.0,111450.0,0.35565266]
[1756151110810,1.47680196,111460.0,111450.0,0.001]
[1756151112028,1.47880196,111460.0,111450.0,0.001]
[1756151112279,0.54405558,111460.0,111450.0,0.001]
[1756151112491,0.51945266,111450.0,111440.0,0.35458623]
[1756151112723,1.45623904,111450.0,111440.0,0.35458623]
[1756151112927,1.45936904,111450.0,111440.0,0.35458623]
[1756151113353,1.45936904,111450.0,111440.0,0.17512]
[1756151113778,0.17946877,111440.0,111420.0,0.18847602]
[1756151114045,0.93678638,111430.0,111420.0,0.36351602]
[1756151114256,1.45940125,111430.0,111420.0,0.35454098]
[1756151114486,1.45940125,111430.0,111420.0,0.17504]
[1756151114692,1.45940125,111430.0,111420.0,0.35454098]
[1756151115341,0.17950098,111420.0,111400.0,0.25749722]
[1756151115562,0.18263098,111420.0,111410.0,0.175]
[1756151115780,0.18263098,111420.0,111400.0,0.30830754]
[1756151115781,0.19696611,111410.0,111400.0,0.24857321]
[1756151115989,1.13688249,111410.0,111400.0,0.24404]
[1756151116428,1.47688249,111410.0,111400.0,0.175]
[1756151117091,0.17953321,111400.0,111380.0,0.18843851]
[1756151117276,0.18266321,111400.0,111390.0,0.35450933]
[1756151117532,0.72410163,111410.0,111400.0,0.17953321]
[1756151117765,0.00204,111400.0,111390.0,0.35450933]
[1756151117974,0.93678638,111400.0,111390.0,0.35450933]
[1756151118196,0.93474638,111400.0,111390.0,0.35665933]
[1756151118460,1.2953254,111410.0,111400.0,0.17953321]
[1756151118671,1.47688249,111410.0,111400.0,0.17953321]
[1756151119137,0.34,111410.0,111400.0,0.18168321]
[1756151119567,1.67276746,111430.0,111420.0,0.17950098]
[1756151119782,0.51950098,111420.0,111410.0,0.35442276]
[1756151119993,1.27678638,111420.0,111410.0,0.35443709]
[1756151120173,0.52467098,111420.0,111410.0,0.35443709]
[1756151120472,1.45941736,111420.0,111410.0,0.40773179]
[1756151120683,1.45941736,111420.0,111410.0,0.35343709]
[1756151120888,1.45941736,111420.0,111400.0,0.17953321]
[1756151121103,0.93474638,111410.0,111400.0,0.35441321]
[1756151121315,0.71796,111420.0,111410.0,0.17951709]
[1756151121536,0.20213611,111410.0,111400.0,0.17953321]
[1756151121764,1.13688249,111410.0,111400.0,0.35441321]
[1756151121972,1.47688249,111410.0,111400.0,0.35441321]
[1756151124017,1.47688249,111410.0,111390.0,0.18856679]
[1756151124220,1.47688249,111410.0,111390.0,0.35442877]
[1756151124221,0.93787638,111400.0,111390.0,0.35442877]
[1756151124429,0.00517,111400.0,111390.0,0.35442877]
[1756151124646,0.93991638,111400.0,111390.0,0.35442877]
[1756151126116,0.00204,111400.0,111390.0,0.35442877]
[1756151126321,0.93993638,111400.0,111390.0,0.35442877]
[1756151126723,0.93993638,111400.0,111390.0,0.35542877]
[1756151128658,0.00204,111400.0,111390.0,0.4387455]
[1756151128823,1.2953454,111410.0,111400.0,0.17953321]
[1756151129026,1.2974854,111410.0,111400.0,0.17953321]
[1756151129486,1.47700249,111410.0,111400.0,0.17953321]
[1756151129720,1.47700249,111410.0,111390.0,0.35534594]
[1756151129940,0.93474638,111400.0,111390.0,0.35534594]
[1756151130160,1.11956959,111400.0,111390.0,0.17958594]
[1756151130348,1.11956959,111400.0,111390.0,0.35430594]
[1756151130826,1.56388826,111400.0,111390.0,4e-05]
[1756151131070,1.47701861,111400.0,111390.0,4e-05]
[1756151131285,1.65169861,111400.0,111390.0,4e-05]
[1756151132599,1.66575145,111400.0,111390.0,4e-05]
[1756151133055,1.66575145,111400.0,111390.0,0.00104]
[1756151134840,1.7526211,111400.0,111390.0,0.00104]
[1756151135074,1.78106619,111400.0,111390.0,0.00104]
[1756151135293,1.73856826,111400.0,111390.0,0.00104]
[1756151135521,1.57794299,111400.0,111390.0,0.00104]
[1756151135759,1.75254299,111400.0,111390.0,0.00104]
[1756151136216,1.75354299,111400.0,111390.0,4e-05]
[1756151136434,1.75450299,111400.0,111390.0,4e-05]
[1756151136654,1.75350299,111400.0,111390.0,4e-05]
[1756151136888,1.66563334,111400.0,111390.0,4e-05]
[1756151137100,1.67063334,111400.0,111390.0,4e-05]
[1756151137318,1.69763634,111400.0,111390.0,4e-05]
[1756151137791,1.52307634,111400.0,111390.0,4e-05]
[1756151138013,1.69463634,111400.0,111390.0,4e-05]
[1756151138247,1.78050599,111400.0,111390.0,4e-05]
[1756151138689,0.75984996,111400.0,111390.0,4e-05]
[1756151138907,1.34054313,111400.0,111390.0,0.17958933]
[1756151139128,1.69459634,111400.0,111390.0,0.18164933]
[1756151139349,0.75669996,111400.0,111390.0,0.18164933]
[1756151139606,1.31780411,111400.0,111390.0,0.18164933]
[1756151139841,1.65014432,111400.0,111390.0,4e-05]
[1756151140072,1.75446299,111400.0,111390.0,4e-05]
[1756151141657,6.75446299,111400.0,111390.0,4e-05]
[1756151142770,6.75346299,111400.0,111390.0,4e-05]
[1756151142993,6.75246299,111400.0,111390.0,4e-05]
[1756151143185,6.75546299,111400.0,111390.0,4e-05]
[1756151143436,6.75846299,111400.0,111390.0,4e-05]
[1756151143640,6.75546299,111400.0,111390.0,4e-05]
[1756151143856,6.75246299,111400.0,111390.0,4e-05]
[1756151144290,6.75846299,111400.0,111390.0,4e-05]
[1756151144513,6.75546299,111400.0,111390.0,4e-05]
[1756151144749,6.75846299,111400.0,111390.0,4e-05]
[1756151146321,6.58394299,111400.0,111390.0,4e-05]
[1756151146771,6.75830299,111400.0,111390.0,4e-05]
[1756151147648,6.79966845,111400.0,111390.0,4e-05]
[1756151148763,6.49707334,111400.0,111390.0,4e-05]
[1756151149000,6.67139334,111400.0,111390.0,4e-05]
[1756151149232,5.71919794,111400.0,111390.0,4e-05]
[1756151149460,6.47962432,111400.0,111390.0,4e-05]
[1756151149685,6.67139334,111400.0,111390.0,4e-05]
[1756151149883,6.75826299,111400.0,111390.0,4e-05]
[1756151150131,6.75226299,111400.0,111390.0,4e-05]
[1756151150358,6.75826299,111400.0,111390.0,4e-05]
[1756151150804,6.75526299,111400.0,111390.0,4e-05]
[1756151151028,6.75726299,111400.0,111390.0,4e-05]
[1756151151466,6.58294299,111400.0,111390.0,4e-05]
[1756151151719,6.75222299,111400.0,111390.0,4e-05]
[1756151151941,6.75218299,111400.0,111390.0,4e-05]
[1756151152160,1.75418299,111400.0,111390.0,4e-05]
[1756151152413,1.78118699,111400.0,111390.0,4e-05]
[1756151153075,1.78318699,111400.0,111390.0,4e-05]
[1756151153295,1.60694699,111400.0,111390.0,0.0021]
[1756151153543,1.51478734,111400.0,111390.0,0.00528]
[1756151153752,1.68998734,111400.0,111390.0,0.00528]
[1756151153968,1.68998734,111400.0,111390.0,0.0021]
[1756151154224,0.75524096,111400.0,111390.0,0.18164933]
[1756151154452,1.67253832,111400.0,111390.0,0.18482933]
[1756151154663,1.68998734,111400.0,111390.0,0.18164933]
[1756151154895,1.68698734,111400.0,111390.0,0.18164933]
[1756151155122,1.49973261,111400.0,111390.0,0.18164933]
[1756151155355,1.68798562,111400.0,111390.0,0.0021]
[1756151156004,1.68794562,111400.0,111390.0,0.0021]
[1756151156242,1.50841241,111400.0,111390.0,0.18690369]
[1756151156462,1.48140841,111400.0,111390.0,0.18465933]
[1756151156713,1.66094162,111400.0,111390.0,0.18465933]
[1756151157352,1.66094162,111400.0,111390.0,0.0021]
[1756151157603,0.81306489,111400.0,111390.0,4e-05]
[1756151157835,1.75287127,111400.0,111390.0,4e-05]
[1756151158907,6.85039636,111400.0,111390.0,4e-05]
[1756151159109,6.82195127,111400.0,111390.0,4e-05]
[1756151159470,5.71304489,111400.0,111390.0,4e-05]
[1756151159681,6.82183127,111400.0,111390.0,4e-05]
[1756151160300,1.57578127,111400.0,111390.0,0.00215]
[1756151160532,1.66295162,111400.0,111390.0,0.00215]
[1756151160954,1.66295162,111400.0,111390.0,4e-05]
[1756151160955,1.66588162,111400.0,111390.0,4e-05]
[1756151161171,6.49184162,111400.0,111390.0,4e-05]
[1756151161408,6.66584162,111400.0,111390.0,4e-05]
[1756151161628,6.49184162,111400.0,111390.0,4e-05]
[1756151161873,6.66584162,111400.0,111390.0,4e-05]
[1756151162076,6.75271127,111400.0,111390.0,4e-05]
[1756151162922,6.78115636,111400.0,111390.0,4e-05]
[1756151163157,6.77971727,111400.0,111390.0,4e-05]
[1756151164468,6.77871727,111400.0,111390.0,4e-05]
[1756151164694,6.60671727,111400.0,111390.0,4e-05]
[1756151164909,6.78267727,111400.0,111390.0,4e-05]
[1756151165514,6.78067727,111400.0,111390.0,4e-05]
[1756151165733,6.78267727,111400.0,111390.0,4e-05]
[1756151166181,6.77867727,111400.0,111390.0,4e-05]
[1756151166403,6.60671727,111400.0,111390.0,4e-05]
[1756151166628,1.60378727,111400.0,111390.0,0.00215]
[1756151166866,1.51478762,111400.0,111390.0,0.00215]
[1756151167098,1.6711786,111400.0,111390.0,0.00215]
[1756151167326,1.68862762,111400.0,111390.0,0.00215]
[1756151167783,1.69075762,111400.0,111390.0,0.00215]
[1756151168480,0.58004124,111400.0,111390.0,0.18470933]
[1756151168702,0.04305901,111400.0,111390.0,0.18470933]
[1756151168922,0.04305901,111400.0,111390.0,0.22113671]
[1756151168923,0.95079939,111400.0,111390.0,0.22113671]
[1756151169168,1.28979939,111400.0,111390.0,0.18470933]
[1756151169375,0.01405301,111400.0,111390.0,0.18470933]
[1756151169593,0.01605301,111400.0,111390.0,0.18470933]
[1756151170030,0.01505301,111400.0,111390.0,0.18470933]
[1756151170721,1.1293326,111400.0,111390.0,0.00516]
[1756151170953,1.72996225,111400.0,111390.0,0.00515]
[1756151171175,1.74954127,111400.0,111390.0,4e-05]
[1756151171399,1.66267162,111400.0,111390.0,0.00215]
[1756151171619,1.66460162,111400.0,111390.0,4e-05]
[1756151171874,1.66167162,111400.0,111390.0,0.00215]
[1756151172090,1.65954162,111400.0,111390.0,0.00215]
[1756151172331,1.64548861,111400.0,111390.0,0.00215]
[1756151172563,0.53698223,111400.0,111390.0,0.18569933]
[1756151172774,0.71070223,111400.0,111390.0,0.18470933]
[1756151172992,1.64544861,111400.0,111390.0,0.00215]
[1756151173223,1.64544861,111400.0,111390.0,0.00415]
[1756151173878,1.64757861,111400.0,111390.0,0.00415]
[1756151174085,1.69643152,111400.0,111390.0,0.00204]
[1756151174523,1.65050861,111400.0,111390.0,0.00204]
[1756151174848,0.71070223,111400.0,111390.0,0.18369933]
[1756151175068,1.4659154,111400.0,111390.0,0.18670933]
[1756151175287,1.2921954,111400.0,111390.0,0.18670933]
[1756151175492,1.64536861,111400.0,111390.0,0.00716]
[1756151175707,1.65942095,111400.0,111390.0,0.18369933]
[1756151176548,1.47980774,111400.0,111390.0,0.18670933]
[1756151176757,1.65934095,111400.0,111390.0,0.18670933]
[1756151177186,1.48578095,111400.0,111390.0,0.18670933]
[1756151177401,1.30624774,111400.0,111390.0,0.18670933]
[1756151178074,0.35405234,111400.0,111390.0,0.18670933]
[1756151178268,0.35405234,111400.0,111390.0,0.24069275]
[1756151179814,1.46833193,111400.0,111390.0,0.23768275]
[1756151180469,1.49084095,111400.0,111390.0,0.00204]
[1756151182656,1.66428095,111400.0,111390.0,0.00204]
[1756151183091,1.30624774,111400.0,111390.0,0.18369933]
[1756151183303,0.53358555,111400.0,111390.0,0.18670933]
[1756151183543,0.35405234,111400.0,111390.0,0.18670933]
[1756151183733,1.28879872,111400.0,111390.0,0.22333621]
[1756151183950,1.28879872,111400.0,111390.0,0.39669621]
[1756151183951,0.35405234,111400.0,111390.0,0.39669621]
[1756151184187,0.01405234,111400.0,111390.0,0.48358096]
[1756151184455,0.20649993,111420.0,111410.0,0.17951709]
[1756151184456,1.10810638,111420.0,111410.0,0.17951709]
[1756151184649,1.64718638,111420.0,111410.0,0.18162709]
[1756151184866,1.30718638,111420.0,111410.0,0.18162709]
[1756151185313,1.64718638,111420.0,111410.0,0.18162709]
[1756151185752,1.64505638,111420.0,111410.0,0.18162709]
[1756151185966,0.34,111420.0,111410.0,0.23607369]
[1756151186189,1.45424736,111420.0,111410.0,0.23607369]
[1756151186397,1.45622736,111420.0,111410.0,0.23607369]
[1756151187539,1.45424736,111420.0,111410.0,0.23707369]
[1756151187728,1.46829726,111420.0,111410.0,0.23707369]
[1756151187977,1.28879628,111420.0,111410.0,0.23707369]
[1756151188885,0.3540499,111420.0,111410.0,0.23707369]
[1756151189104,1.28879628,111420.0,111410.0,0.23707369]
[1756151189529,0.3540499,111420.0,111410.0,0.32697844]
[1756151189751,0.0140499,111420.0,111410.0,0.32697844]
[1756151189967,0.3540499,111420.0,111410.0,0.32697844]
[1756151190414,0.9348904,111430.0,111420.0,0.17950098]
[1756151190656,0.21105047,111430.0,111420.0,0.17950098]
[1756151190881,1.14579685,111430.0,111420.0,0.17950098]
[1756151191104,0.19695,111420.0,111410.0,0.17516]
[1756151191347,1.30481638,111420.0,111410.0,0.18151709]
[1756151191568,1.30481638,111420.0,111410.0,0.18051709]
[1756151191569,1.30977638,111420.0,111410.0,0.18051709]
[1756151191763,1.30977638,111420.0,111410.0,0.23483036]
[1756151192025,0.9571554,111420.0,111410.0,0.23383036]
[1756151192266,0.9541754,111420.0,111410.0,0.23586036]
[1756151192671,0.9521954,111420.0,111410.0,0.23586036]
[1756151193035,1.11735536,111430.0,111420.0,0.17950098]
[1756151193250,0.9348904,111430.0,111420.0,0.20235826]
[1756151193464,0.9348904,111430.0,111420.0,0.37543826]
[1756151193696,0.00014402,111430.0,111420.0,0.37543826]
[1756151193903,0.00014402,111430.0,111420.0,0.37845826]
[1756151195180,0.00014402,111430.0,111420.0,0.37945826]
[1756151196096,0.00014402,111430.0,111420.0,0.46634301]
[1756151196945,0.00014402,111430.0,111420.0,0.46534301]
[1756151197158,0.00014402,111430.0,111420.0,0.46518301]
[1756151197396,0.00014402,111430.0,111420.0,0.46618301]
[1756151198081,0.00014402,111430.0,111420.0,0.46518301]
[1756151198287,0.00014402,111430.0,111420.0,0.46718301]
[1756151198499,0.00014402,111430.0,111420.0,0.46918301]
[1756151198708,0.00014402,111430.0,111420.0,0.46718301]
[1756151199155,0.00014402,111430.0,111420.0,1.50492939]
[1756151199375,0.00014402,111430.0,111420.0,1.84492939]
[1756151199580,0.00014402,111430.0,111420.0,1.67200939]
[1756151199705,0.00014402,111430.0,111420.0,0.90814301]
[1756151199910,0.00014402,111430.0,111420.0,0.90514301]
[1756151200126,0.00014402,111430.0,111420.0,0.91314301]
[1756151200345,0.00014402,111430.0,111420.0,0.91310301]
[1756151200555,0.00014402,111430.0,111420.0,0.95036533]